Cogmind - Beta 9.4 *** ADVENTURER MODE // 2020.08.06 @ 18:24:40 Player: Scyralis Result: Destroyed by Y-45 Defender with Beam Rifle Performance ------------- Evolutions (1) 500 Regions Visited (3) 600 Robots Destroyed (39) 195 Value Destroyed (716) 716 Prototype IDs (0) 0 Alien Tech Used (0) 0 Bonus (0) 0 TOTAL SCORE: 2011 Bonus ------- None Cogmind --------- Core Integrity 0/400 Matter 283/300 Energy 99/100 System Corruption 4% Temperature Cool (9) Movement Core (50) Location -9/Storage Parts ------- > --- POWER (1) -------- (None) > --- PROPULSION (2) --- (None) > --- UTILITY (4) ------ (None) > --- WEAPON (2) ------- (None) > --- INVENTORY (4) ---- Datajack Peak State ------------ > --- POWER ------------ Reinforced Ion Engine > --- PROPULSION ------- Wheel Compact Wheel > --- UTILITY ---------- Heat Sink Armor Integrity Analyzer Light Armor Plating Medium Armor Plating > --- WEAPON ----------- Maul Maul > --- INVENTORY -------- Datajack [Rating: 14] Favorites ----------- Power Ion Engine Engine Ion Engine Propulsion Wheel Wheel Wheel Utility Core Shielding Device Heat Sink Processor Armor Integrity Analyzer Protection Core Shielding Weapon Grenade Launcher Energy Gun EM Pulse Gun Ballistic Gun Light Assault Rifle Launcher Grenade Launcher Impact Weapon Maul Slashing Weapon Mining Claw Build | -11 -10 -9 -9 ------- Run | Scr Mat Mat Sto Slots Evolved 2 | . . 2 . Power . | . . . . Propulsion . | . . . . Utility 2 | . . 2 . Weapon . | . . . . Parts Attached 25 | 5 7 2 11 Power 4 | 1 1 1 1 Engine 4 | 1 1 1 1 Core . | . . . . Reactor . | . . . . Propulsion 5 | 2 2 . 1 Treads . | . . . . Leg . | . . . . Wheel 5 | 2 2 . 1 Hover . | . . . . Flight . | . . . . Utility 6 | . 1 1 4 Device 2 | . . 1 1 Storage . | . . . . Processor 1 | . . . 1 Hackware . | . . . . Protection 3 | . 1 . 2 Artifact . | . . . . Weapon 10 | 2 3 . 5 Energy Gun 2 | 2 . . . Energy Cannon . | . . . . Ballistic Gun 2 | . 2 . . Ballistic Cannon . | . . . . Launcher 3 | . . . 3 Special Weapon . | . . . . Impact Weapon 2 | . . . 2 Slashing Weapon 1 | . 1 . . Piercing Weapon . | . . . . Special Melee Weapon . | . . . . Unidentified Prototypes . | . . . . Parts Lost 15 | . 3 . 12 Power 1 | . . . 1 Propulsion 4 | . 1 . 3 Utility 5 | . . . 5 Weapon 5 | . 2 . 3 Highest Loss Streak 8 | . 3 . 8 Average Slot Usage (%) 67 | . 68 65 67 Engine 10 | . 14 11 8 Wheel 18 | . 20 22 16 Device 5 | . . 10 7 Processor 3 | . . . 5 Protection 11 | . 12 11 11 Energy Gun 2 | . 8 . . Ballistic Gun 2 | . 7 . . Launcher 7 | . . . 13 Slashing Weapon 3 | . 4 11 1 Naked Turns 81 | . . . 81 Heaviest Build 28 | 9 10 11 28 Greatest Support 26 | 26 26 20 26 Greatest Overweight (x) 2 | . . . 2 Average Overweight (x) . | . . . . Largest Inventory Capacity 4 | 4 4 4 4 Average Capacity 4 | 4 4 4 4 Most Carried 4 | 4 3 2 4 Average Carried . | . . 1 1 Final Capacity 4 | 4 4 4 4 Final Carried 1 | . 1 1 1 Class Distribution -------------------- 67% | Mutant 32% | Scavenger-Mutant Dominant Class ---------------- Mutant | -10/Materials Mutant | -9/Materials Scavenger-Mutant | -9/Storage Resources | -11 -10 -9 -9 ----------- Run | Scr Mat Mat Sto Matter Collected 725 | 139 124 40 422 Remotely 40 | . . 40 . Salvage Created 1127 | . 283 245 599 Parts 65 | . 18 3 44 Haulers Intercepted 3 | . . . 3 Recyclers Shooed . | . . . . Parts Field Recycled . | . . . . Retrieved Matter . | . . . . Parts Self-Destructed . | . . . . Prevented . | . . . . Kills | -11 -10 -9 -9 ------- Run | Scr Mat Mat Sto Combat Hostiles Destroyed 18 | . 5 3 10 Melee 6 | . 3 3 . Guns 2 | . 2 . . AOE 10 | . . . 10 Classes Destroyed 10 | . 5 1 4 Worker 6 | . 2 1 3 Builder 3 | . . . 3 Hauler 3 | . . . 3 Recycler 6 | . 1 1 4 Mechanic 1 | . 1 . . Watcher 2 | . . . 2 Swarmer 3 | . 3 . . Grunt 11 | . 2 2 7 Brawler 1 | . . . 1 Sentry 3 | . . 1 2 Best Kill Streak 11 | . 3 3 11 Combat Bots Only 8 | . 2 1 8 Max Kills in Single Turn 4 | . 1 1 4 Gunslinging . | . . . . Exploded 2 | . . . 2 Melee 1 | . 1 1 . Uniques/NPCs Destroyed . | . . . . Combat | -11 -10 -9 -9 -------- Run | Scr Mat Mat Sto Damage Taken 1352 | . 309 151 892 Core 523 | . 119 31 373 Absorbed by Shields . | . . . . Core Remaining (%) 76 | 100 52 . . Volleys Fired 33 | . 11 . 22 Largest 2 | . 2 . 2 Hottest 90 | . 90 . 63 Shots Fired 58 | . 21 . 37 Gun 21 | . 21 . . Cannon . | . . . . Launcher 37 | . . . 37 Special . | . . . . Kinetic 8 | . 8 . . Thermal 6 | . 6 . . Explosive 37 | . . . 37 Electromagnetic 7 | . 7 . . Robot Hit Streak 14 | . 14 . 13 Robot Miss Streak 2 | . 2 . 1 Penetration Max . | . . . . Secondary Targets 1 | . 1 . . Max Gunslinging Chain 1 | . 1 . . Shots Hit Robots 70 | . 26 13 31 Core Hits 67 | . 18 5 44 Critical Hits . | . . . . Critical Kills . | . . . . Critical Parts Destroyed . | . . . . Melee Attacks 43 | . 11 20 12 Impact 12 | . . . 12 Slashing 31 | . 11 20 . Piercing . | . . . . Sneak Attacks 10 | . 3 3 4 Combat Hostiles . | . . . . Follow-up Attacks 3 | . . . 3 Damage Inflicted 2835 | . 582 437 1816 Guns 172 | . 172 . . Cannons . | . . . . Explosions 1397 | . . . 1397 Melee 1205 | . 364 437 404 Ramming 61 | . 46 . 15 Kinetic 69 | . 69 . . Thermal 37 | . 37 . . Explosive 1397 | . . . 1397 Electromagnetic 66 | . 66 . . Impact 404 | . . . 404 Slashing 801 | . 364 437 . Piercing . | . . . . Highest Corruption 4 | . 3 . 4 Average Corruption 3 | . 2 . 4 Corruption Purged . | . . . . Effects 7 | . 4 . 3 Message Errors 2 | . 2 . . Matter Fused 2 | . 1 . 1 Heat Flow Errors 2 | . 1 . 1 Energy Discharges 1 | . . . 1 Overload Shots . | . . . . Overflow Damage 206 | . 32 17 157 Projectiles . | . . . . Explosions 26 | . . . 26 Melee 180 | . 32 17 131 Knockbacks 2 | . . . 2 Impact 2 | . . . 2 Kinetic . | . . . . Secondary . | . . . . Self-Inflicted Damage 170 | . 19 . 151 Shots 11 | . . . 11 Rammed 28 | . 22 . 6 Targets Rammed 28 | . 22 . 6 Kicked . | . . . . Crushed . | . . . . Highest Temperature 210 | . 210 . 88 Average Temperature 68 | . 93 . 14 Received Heat Transfer 357 | . 60 63 234 Effects 1 | . 1 . . Interference 1 | . 1 . . Siege Activations . | . . . . Robots Corrupted . | . . . . Combat Hostiles . | . . . . Parts Fried 1 | . . . 1 Impact Corruptions 7 | . . . 7 Robots Melted . | . . . . Combat Hostiles . | . . . . Parts Melted . | . . . . Heat Transferred 111 | . 111 . . Parts Sabotaged . | . . . . Parts Stolen . | . . . . Parts Stripped . | . . . . Power Chain Reactions . | . . . . Missiles Intercepted . | . . . . Alert | -11 -10 -9 -9 ------- Run | Scr Mat Mat Sto Peak Influence 452 | . 155 150 452 Average Influence 187 | . 72 100 294 Maximum Alert Level 2 | . . . 2 Low Security (%) 63 | 100 100 100 28 Level 1 30 | . . . 59 Level 2 6 | . . . 11 Level 3 . | . . . . Level 4 . | . . . . Level 5 . | . . . . High Security . | . . . . Max Security . | . . . . Squads Dispatched . | . . . . Investigation . | . . . . Extermination . | . . . . Reinforcement . | . . . . Assault . | . . . . Garrison . | . . . . Intercept . | . . . . Construction Impeded . | . . . . Haulers Reinforced . | . . . . Stealth | -11 -10 -9 -9 --------- Run | Scr Mat Mat Sto Distress Signals 6 | . 3 2 1 Communications Jammed . | . . . . Distress Signals . | . . . . Times Spotted 36 | . 11 7 18 Peak Tracking Total 10 | . 6 4 10 Tactical Retreats 2 | . . . 2 Traps | -11 -10 -9 -9 ------- Run | Scr Mat Mat Sto Traps Triggered 2 | . . . 2 Indirectly . | . . . . Trap Hack Attempts . | . . . . Triggered . | . . . . Disarmed . | . . . . Reprogrammed . | . . . . Reused . | . . . . Traps Extracted . | . . . . Installed . | . . . . Triggered . | . . . . Machines | -11 -10 -9 -9 ---------- Run | Scr Mat Mat Sto Machines Disabled 2 | . . . 2 Max in Single Turn 1 | . . . 1 Machines Sabotaged . | . . . . Garrisons Compromised . | . . . . Overloaded Fab Kills . | . . . . Fab Network Shutdowns . | . . . . Hacking | -11 -10 -9 -9 --------- Run | Scr Mat Mat Sto Machines Accessed 6 | . 3 . 3 Terminals 5 | . 2 . 3 Fabricators . | . . . . Repair Stations . | . . . . Recycling Units 1 | . 1 . . Scanalyzers . | . . . . Garrison Access . | . . . . Total Hacks 15 | . 8 . 7 Successful 8 | . 4 . 4 Failed 7 | . 4 . 3 Catastrophic 2 | . 1 . 1 Database Lockouts . | . . . . Manual 9 | . 6 . 3 Terminals 13 | . 6 . 7 Fabricators . | . . . . Repair Stations . | . . . . Recycling Units 2 | . 2 . . Scanalyzers . | . . . . Garrison Access . | . . . . Terminal Hacks 6 | . 2 . 4 Robot Analysis 2 | . 2 . . Open Door 1 | . . . 1 Level Access Points 1 | . . . 1 Branch Access Points 1 | . . . 1 Registered Components 1 | . . . 1 Fabricator Hacks . | . . . . Repair Station Hacks . | . . . . Recycling Unit Hacks 2 | . 2 . . Retrieve Components 2 | . 2 . . Scanalyzer . | . . . . Garrison Access Hacks . | . . . . Unauthorized Hacks . | . . . . Terminals . | . . . . Fabricators . | . . . . Repair Stations . | . . . . Recycling Units . | . . . . Scanalyzers . | . . . . Garrison Access . | . . . . Data Cores Recovered . | . . . . Used . | . . . . Hacking Detections 6 | . 3 . 3 Full Trace Events 1 | . 1 . . Feedback Events . | . . . . Feedback Blocked . | . . . . Robot Schematics Acquired . | . . . . Robots Built . | . . . . Matter . | . . . . Time . | . . . . Total Robot Build Rating . | . . . . Part Schematics Acquired . | . . . . Parts Built . | . . . . Matter . | . . . . Time . | . . . . Total Part Build Rating . | . . . . Parts Repaired . | . . . . Time . | . . . . Parts Recycled . | . . . . Recycled Matter . | . . . . Retrieved Matter . | . . . . Retrieved Components 3 | . 3 . . Parts Scanalyzed . | . . . . Part Schematics Acquired . | . . . . Parts Damaged . | . . . . Bothacking | -11 -10 -9 -9 ------------ Run | Scr Mat Mat Sto Used RIF Installer . | . . . . Robots Hacked . | . . . . Non-combat . | . . . . Combat . | . . . . Robot Hacks Applied . | . . . . Relay Couplers Released . | . . . . Robots Rewired . | . . . . Allies Hacked . | . . . . Hacks Repelled . | . . . . Allies | -11 -10 -9 -9 -------- Run | Scr Mat Mat Sto Total Allies . | . . . . Largest Group . | . . . . Highest-Rated Group . | . . . . Highest-Rated Ally . | . . . . Total Orders 1 | . . . 1 EXPLORE 1 | . . . 1 Ally Attacks . | . . . . Total Damage . | . . . . Kills . | . . . . Allies Corrupted . | . . . . Allies Melted . | . . . . Intel | -11 -10 -9 -9 ------- Run | Scr Mat Mat Sto Robot Analysis Total 2 | . 2 . . Derelict Logs Recovered . | . . . . Drone Launches 16 | . . . 16 Drone Recoveries . | . . . . Exploration | -11 -10 -9 -9 ------------- Run | Scr Mat Mat Sto Turns Passed 987 | 39 306 131 511 Spaces Moved 805 | 34 220 82 469 Core 149 | 8 . . 141 Treads . | . . . . Legs . | . . . . Wheels 656 | 26 220 82 328 Hover . | . . . . Flight . | . . . . Fastest Speed 50 | 50 80 80 50 Average Speed 83 | 80 92 80 80 Slowest Speed 100 | 90 100 80 100 Overloaded Moves . | . . . . Propulsion Burnouts . | . . . . Robots Hopped . | . . . . Cave-ins Triggered 1 | . . . 1 Exploration Rate (%) 27 | 3 42 14 52 Regions Visited 3 Branch Regions 1 Pre-discovered Areas . | . . . . Known Exits Taken . | . . . . Unknown Exits Taken 3 | 1 1 1 . Scrap Searched . | . . . . Spaces Dug 3 | . 1 2 . Terrain Destroyed 139 | . 1 2 136 Melee 3 | . 1 2 . Projectile . | . . . . AOE 136 | . . . 136 Actions | -11 -10 -9 -9 --------- Run | Scr Mat Mat Sto Total 983 | 45 284 107 547 Wait 2 | . . 2 . Move 802 | 33 219 81 469 Hop . | . . . . Pick Up 30 | 6 9 1 14 Fast Attach . | . . . . Attach 24 | 5 7 1 11 Detach . | . . . . Swap 1 | . . 1 . Drop 14 | 1 5 1 7 Fire 33 | . 11 . 22 Melee 40 | . 11 20 9 Ram 28 | . 22 . 6 Kick . | . . . . Crush . | . . . . Escape Stasis . | . . . . Rewire 1 | . . . 1 Trap . | . . . . Miscellaneous 8 | . . . 8 Route ------- -11/Scrapyard -10/Materials -9/Materials -9/Storage (discovered 2 exits: Mat / Rec) History --------- Turn | Location | Event 2 | -11/Scrapyard | Met Revision 17 19 | -11/Scrapyard | Discovered new exit (range 15) 40 | -11/Scrapyard | Entered Materials 179 | -10/Materials | Lost 3 parts (1n2w) 322 | -10/Materials | Build established: Mutant 343 | -10/Materials | Discovered new exit (range 4) 346 | -10/Materials | Entered another Materials area 346 | -9/Materials | Evolved 2 slots: Utility x2 416 | -9/Materials | Discovered new exit (range 13) 477 | -9/Materials | Entered Storage 572 | -9/Storage | Lost 4 parts (1n2u1w) 578 | -9/Storage | Destroyed 8 combat bots 677 | -9/Storage | Identified exit to Recycling 677 | -9/Storage | Identified exit to Materials 853 | -9/Storage | Build established: Scavenger-Mutant 877 | -9/Storage | Crushed by falling debris 877 | -9/Storage | Core integrity fell below 50% 916 | -9/Storage | Core integrity fell below 20% 938 | -9/Storage | Lost 8 parts (1p2n3u2w) 988 | -9/Storage | Destroyed by Y-45 Defender with Beam Rifle Last Messages --------------- 00881_ Acquired 15 matter. 00883_ Triggered Blade Trap. 00883_ Massive razor-sharp blades shoot up from within the floor. 00883_ Armor Integrity Analyzer severed. 00907_ Triggered Explosive Trap. 00907_ An explosion rips through the floor. 00907_ Com. Wheel destroyed. 00907_ Heat Sink destroyed. 00912_ System corrupted: Matter fused (-10). 00923_ R-06 Scavenger collects Shotgun. 00942_ Slammed into K-01 Serf. 00945_ System corrupted: Heat flow error (+116). 00945_ Slammed into K-01 Serf. 00967_ Connecting with Terminal... >>Open Sealed Heavy Doors opened. 00968_ Drone released from Drone Bay. 00974_ System corrupted: Energy discharge (-32). 00974_ Drone released from Drone Bay. 00984_ Drone destroyed. Map ----- +----------------------------------------------------+ | # # #???????????????? | | # ######?????????####### | | # #######?##???????????# # | | # #???#### ????????????# | | # #?>?# ##???????????# T | | # #???# #???????????# | | # #"""" #????????????# # | | # # # #????????????## ## | | # # ## ##?????????????# # | | # # # # #??????????????# # | | # # ##??????????????# # | | # # ###########???????# ^+ | | ####### ## #??????## ^# | | ?????#T ## #?????## ^ | | ?????## # ! /#?????# | | ??????# # #?????### # | | ??????# + ! #?????### | | ????### # #?????## | | ##### ########### #?????## | | # #????????# #??????# | | # """ #????????# #####??# | | # """ #????????#######+# # #### # | | # """ #?????????????## ########## ## | | # #####?????????## # # #! | | # """ # ############ # # # | | # """ %+ /n @ ## # # # | | # """ # # #n# + + | | # # # # # # # | | # """ # +% n nnn #*# # # | | # """ !# # nn Y Y # | | # """ # # ## # # | | # # # ## # # ## | | ######## # ## ##############? | | # # n############ #?????????????? | | #""" # #####??????#n#??????#??????? | | #""" + + ##?????#n#???? #??????? | | #""" # # T#?????#n#?? """#??????? | | #""" # ### ##?????#n# """#??????? | | #""" # ##! !#?????# + """#??????? | | # # ##! !#?????# # #??????? | | ######## ##! !#?????# #############?? | | ???##### ##! !#?????# #?# #?? | | ??#]] + ######???### ### ??? | | ??#]] # nY########## # """"???? | | ??#]] # # """" ??? | | ??####?# T + """" ??? | | ???????# # """" ??? | | ???????# #####+#### # #?? | | ???????# ## ####### #?? | | ???????# ## #?????######### #?? | +----------------------------------------------------+ Best States ------------- Heat Dissipation 38 Energy Generation 12 Energy Capacity 265 Matter Stores 300 Matter Capacity 300 Sight Range 16 Terrain Scan Density 10 Armor Coverage 375 Resistance: KI 20 Resistance: TH 20 Resistance: EX 20 Resistance: EM 20 Resistance: I 20 Resistance: S 20 Resistance: P 20 Core Shielding 20 Evasion (%) 50 Armor Integrity Analysis 33 Offensive Hacking 10 Item Schematics ----------------- None Robot Schematics ------------------ None Fabricated ------------ Nothing Alien Tech Used ----------------- None Achievements -------------- None Challenges ------------ None Game ------ Seed BarrageBurstCompressor Manual? 0 Play Time 00:12:17 Cumulative 231.9 hours Start 2020.08.06 @ 18:16:42 End 2020.08.06 @ 18:24:40 Sessions 1 Manual Loads 0 Difficulty Adventurer Special Mode None Game No. 94 Rogue 0 Adventurer 94 Explorer 0 Win Type - Total 1 Types 1/0/0/0/0/0/0 Lore% 33 Gallery% 59 Achievement% 44 Wizard Run 0 Options --------- ASCII 0 Keyboard 0 Movement Numpad Keybinds 0 Fullscreen 0 Font 12/Smallcaps Map View 83x54 Tactical HUD 1 Map Filters NONE Filters NONE Steam X RUN: 1d712d88-1ab7-44d7-8f6f-ffb3fa7b1924